bitfinex/quotes_BTCUSD_20241205
["timestamp","ask_amount","ask_price","bid_price","bid_amount"]
[1733412893303,0.195656,102220.0,102210.0,0.0017316]
[1733412893517,0.46066165,102220.0,102210.0,0.0017316]
[1733412893735,0.63078658,102220.0,102210.0,0.0017316]
[1733412893906,0.58886165,102220.0,102210.0,0.0017316]
[1733412894222,1.21576165,102220.0,102210.0,0.0017316]
[1733412894431,0.195713,102190.0,102180.0,0.0067316]
[1733412894821,0.3610426,102190.0,102180.0,0.0067316]
[1733412895239,0.46071865,102190.0,102180.0,0.0067316]
[1733412895465,0.50264358,102190.0,102180.0,0.0067316]
[1733412896924,0.3610816,102170.0,102160.0,0.0017344]
[1733412897342,0.18641744,102170.0,102160.0,0.0017344]
[1733412897772,0.35174704,102170.0,102160.0,0.0017344]
[1733412897987,0.38542308,102170.0,102160.0,0.0017344]
[1733412898188,0.26700565,102170.0,102160.0,0.0017344]
[1733412898414,0.46275765,102170.0,102160.0,0.0017344]
[1733412898610,0.48220671,102170.0,102160.0,0.0017344]
[1733412899305,0.48120671,102170.0,102160.0,0.0017344]
[1733412899701,0.48320671,102170.0,102160.0,0.0017344]
[1733412900172,0.48520671,102170.0,102160.0,0.0017344]
[1733412900384,0.31987711,102170.0,102160.0,0.0017344]
[1733412900579,0.4943768,102170.0,102160.0,0.0017344]
[1733412900781,0.4893768,102170.0,102160.0,0.0017344]
[1733412901221,0.4913768,102170.0,102160.0,0.0017344]
[1733412901673,0.03161915,102170.0,102160.0,0.0017344]
[1733412901879,0.03161915,102170.0,102160.0,0.49840012]
[1733412901880,0.003,102170.0,102160.0,0.49840012]
[1733412902088,0.003,102170.0,102160.0,0.33307052]
[1733412902286,0.001,102170.0,102160.0,0.33307052]
[1733412902459,0.001,102170.0,102160.0,0.17711045]
[1733412902664,0.003,102170.0,102160.0,0.23518552]
[1733412902877,0.197752,102170.0,102160.0,0.0017344]
[1733412903046,0.12975199,102170.0,102160.0,0.0017344]
[1733412903258,0.002,102170.0,102160.0,0.0067344]
[1733412903467,0.34668928,102170.0,102160.0,0.0017344]
[1733412903686,0.44536533,102170.0,102160.0,0.0037344]
[1733412904124,0.29542805,102170.0,102160.0,0.0017344]
[1733412904557,0.197752,102170.0,102160.0,0.0017344]
[1733412904770,0.002,102170.0,102160.0,0.0996194]
[1733412905018,0.003,102170.0,102160.0,0.0996194]
[1733412905843,0.001,102170.0,102150.0,0.15638979]
[1733412906059,0.001,102170.0,102150.0,0.19756305]
[1733412906272,0.002,102170.0,102160.0,0.097885]
[1733412906485,0.001,102170.0,102160.0,0.097885]
[1733412906711,0.001,102170.0,102160.0,0.0996198]
[1733412906913,0.0018674,102170.0,102160.0,0.50777259]
[1733412907126,0.0018674,102170.0,102160.0,0.27509585]
[1733412907127,0.0008674,102170.0,102160.0,0.27509585]
[1733412907338,0.0008674,102170.0,102160.0,0.17721085]
[1733412907602,0.0008674,102170.0,102160.0,0.27807461]
[1733412907818,0.0008674,102170.0,102160.0,0.27709585]
[1733412908058,0.03286739,102180.0,102160.0,0.37498085]
[1733412908285,0.03286739,102180.0,102160.0,0.37497585]
[1733412908480,0.03286739,102180.0,102160.0,0.37497085]
[1733412908781,0.03286739,102180.0,102160.0,0.27709085]
[1733412909024,0.03286739,102180.0,102160.0,0.37496785]
[1733412909270,0.03286739,102180.0,102170.0,0.19755205]
[1733412909494,0.22861039,102180.0,102160.0,0.11819026]
[1733412909731,0.001,102170.0,102160.0,0.22207026]
[1733412909973,0.195775,102160.0,102120.0,0.23148055]
[1733412910233,0.3925358,102160.0,102140.0,0.097904]
[1733412910470,0.1967538,102160.0,102140.0,0.29548005]
[1733412910699,0.0009788,102160.0,102150.0,0.097895]
[1733412911407,0.0029788,102160.0,102150.0,0.097895]
[1733412911891,0.1987498,102160.0,102140.0,0.39337405]
[1733412912126,0.002,102160.0,102150.0,0.097895]
[1733412912375,0.002,102160.0,102150.0,0.427269]
[1733412912608,0.03286739,102180.0,102170.0,0.097876]
[1733412912842,0.03286739,102180.0,102170.0,0.19755205]
[1733412913315,0.4004235,102200.0,102170.0,0.29541405]
[1733412913316,0.5961315,102200.0,102170.0,0.29541405]
[1733412913559,0.5961315,102200.0,102180.0,0.097865]
[1733412913797,0.22450738,102200.0,102180.0,0.293592]
[1733412914032,0.22450738,102200.0,102180.0,0.195726]
[1733412914252,0.22450738,102200.0,102180.0,0.293587]
[1733412914471,0.22450038,102200.0,102180.0,0.195722]
[1733412914704,0.42020438,102200.0,102180.0,0.195722]
[1733412914926,0.42020438,102200.0,102180.0,0.097861]
[1733412915426,0.02880538,102200.0,102180.0,0.19572]
[1733412915673,0.22449938,102200.0,102180.0,0.293581]
[1733412915893,0.003,102200.0,102190.0,0.097856]
[1733412916130,0.005,102200.0,102190.0,0.097856]
[1733412916360,0.002,102200.0,102190.0,0.097856]
[1733412916577,0.02218388,102200.0,102190.0,0.097856]
[1733412916798,0.003,102200.0,102190.0,0.42701044]
[1733412917043,0.195676,102210.0,102190.0,0.29538305]
[1733412917274,0.195676,102210.0,102190.0,0.29637905]
[1733412917503,0.195694,102200.0,102190.0,0.001]
[1733412918188,0.09967605,102200.0,102190.0,0.001]
[1733412918416,1.37014844,102200.0,102190.0,0.001]
[1733412918643,0.391591,102150.0,102130.0,0.17501]
[1733412918863,0.19578,102160.0,102140.0,0.097904]
[1733412919107,0.195752,102170.0,102160.0,0.0017348]
[1733412919339,0.29542805,102170.0,102160.0,0.0017348]
[1733412919572,0.38136177,102170.0,102160.0,0.0017348]
[1733412920047,0.29542805,102170.0,102160.0,0.0017348]
[1733412921016,0.29542805,102170.0,102120.0,0.28565306]
[1733412921017,0.391609,102150.0,102120.0,0.48149406]
[1733412921243,0.195787,102160.0,102140.0,0.097899]
[1733412921465,0.93814991,102170.0,102140.0,0.39337305]
[1733412921691,0.4201035,102170.0,102150.0,0.097892]
[1733412921919,0.4201035,102170.0,102140.0,0.19757405]
[1733412922154,0.195772,102160.0,102140.0,0.195802]
[1733412922390,0.195772,102160.0,102130.0,0.097914]
[1733412922625,0.5667849,102170.0,102140.0,0.097898]
[1733412922951,0.003,102160.0,102150.0,0.097895]
[1733412923054,0.198771,102160.0,102140.0,0.29547305]
[1733412923326,0.195771,102160.0,102140.0,0.29547305]
[1733412923572,0.29544705,102160.0,102120.0,0.0472826]
[1733412923822,0.391559,102160.0,102130.0,0.19759005]
[1733412924054,0.391555,102160.0,102140.0,0.195808]
[1733412924285,0.2293335,102170.0,102140.0,0.1006551]
[1733412924512,0.2293335,102170.0,102150.0,0.195779]
[1733412924513,0.4250955,102170.0,102150.0,0.195779]
[1733412924743,0.4250955,102170.0,102150.0,0.097889]
[1733412924981,0.005,102170.0,102150.0,0.52493244]
[1733412925215,0.195782,102160.0,102140.0,0.097896]
[1733412925486,0.195782,102160.0,102140.0,0.29547005]
[1733412925723,0.195782,102160.0,102140.0,0.097896]
[1733412925965,0.195782,102160.0,102130.0,0.247907]
[1733412925966,0.1958,102150.0,102130.0,0.15]
[1733412926213,0.004,102160.0,102130.0,0.57804049]
[1733412926460,0.002,102160.0,102150.0,0.097895]
[1733412926694,0.195761,102170.0,102140.0,0.34649262]
[1733412926933,0.195761,102170.0,102150.0,0.097888]
[1733412927190,0.195761,102170.0,102150.0,0.195777]
[1733412927662,0.391523,102170.0,102150.0,0.097888]
[1733412927902,0.195784,102160.0,102140.0,0.19757305]
[1733412928149,0.32357199,102160.0,102140.0,0.097897]
[1733412928383,0.19579,102150.0,102130.0,0.15]
[1733412928612,0.21514324,102170.0,102140.0,0.097898]
[1733412928848,0.41090824,102170.0,102140.0,0.19757405]
[1733412929077,0.195771,102160.0,102140.0,0.29547105]
[1733412929337,0.002,102160.0,102140.0,0.19757305]
[1733412929586,0.19919173,102160.0,102140.0,0.39337105]
[1733412929819,0.197771,102160.0,102140.0,0.39337105]
[1733412930039,0.195803,102150.0,102130.0,0.247906]
[1733412930274,0.195809,102140.0,102130.0,0.15]
[1733412930497,0.29548505,102140.0,102130.0,0.15]
[1733412931018,0.44440162,102140.0,102130.0,0.15]
[1733412931257,0.54232084,102140.0,102130.0,0.15]
[1733412931500,1.39722084,102140.0,102130.0,0.15]
[1733412931727,0.87168357,102110.0,102100.0,0.0017314]
[1733412931956,0.195905,102090.0,102080.0,0.0017334]
[1733412932428,0.195905,102090.0,102060.0,0.18792333]
[1733412932429,0.29558105,102090.0,102060.0,0.09798]
[1733412932666,0.195924,102080.0,102060.0,0.195955]
[1733412932917,0.75650491,102090.0,102060.0,0.293931]
[1733412933150,0.195925,102080.0,102060.0,0.195951]
[1733412933640,0.391866,102080.0,102050.0,0.247403]
[1733412933869,0.195925,102080.0,102050.0,0.34707905]
[1733412934085,0.195925,102080.0,102050.0,0.44506405]
[1733412934086,0.391862,102080.0,102050.0,0.44506405]
[1733412934300,0.391916,102070.0,102050.0,0.001735]
[1733412934546,0.195963,102060.0,102050.0,0.001735]
[1733412936069,0.391911,102070.0,102050.0,0.001735]
[1733412936298,0.824806,102090.0,102050.0,0.001735]
[1733412936299,0.002,102090.0,102060.0,0.09967605]
[1733412936504,0.195925,102080.0,102050.0,0.001735]
[1733412936717,0.391866,102080.0,102050.0,0.29737705]
[1733412936928,0.001,102060.0,102050.0,0.30637705]
[1733412937137,0.001,102060.0,102050.0,0.30237705]
[1733412937381,0.001,102060.0,102050.0,0.109726]
[1733412937824,0.391899,102070.0,102050.0,0.202717]
[1733412938231,0.195955,102070.0,102050.0,0.202717]
[1733412938481,0.39191,102070.0,102050.0,0.099726]
[1733412938717,0.195963,102060.0,102050.0,0.001735]
[1733412938933,0.39194,102060.0,102040.0,0.0157272]
[1733412939167,0.42604308,102050.0,102040.0,0.0157272]
[1733412939414,0.29602,102030.0,102010.0,0.0017324]
[1733412939632,0.62577613,102020.0,102010.0,0.0017324]
[1733412939847,0.52577613,102020.0,102010.0,0.0017324]
[1733412940303,0.972459,102010.0,102000.0,0.0017324]
[1733412940523,0.86979613,102010.0,102000.0,0.0017324]
[1733412940790,0.38923505,102010.0,102000.0,0.0017324]
[1733412940987,0.240059,102010.0,102000.0,0.0017324]
[1733412941209,0.196059,102010.0,102000.0,0.0017324]
[1733412941648,1.6700977,102020.0,102000.0,0.0017324]
[1733412941861,0.590149,102020.0,102000.0,0.0017324]
[1733412942135,0.394093,102020.0,102000.0,0.0017324]
[1733412942342,0.20537195,102020.0,102000.0,0.0017324]
[1733412942574,0.40142395,102020.0,102000.0,0.0017324]
[1733412942788,0.002,102010.0,102000.0,0.0017324]
[1733412943009,0.196032,102030.0,102000.0,0.19944745]
[1733412943231,0.002,102020.0,102010.0,0.19770505]
[1733412943470,0.004,102020.0,102010.0,0.29572805]
[1733412943688,0.391985,102050.0,102010.0,0.09967605]
[1733412943907,0.00930438,102060.0,102030.0,0.196014]
[1733412944124,0.00930438,102060.0,102010.0,0.17847605]
[1733412944125,0.53500451,102060.0,102010.0,0.17847605]
[1733412944344,0.62215508,102020.0,102000.0,0.0017324]
[1733412944558,0.42612008,102010.0,102000.0,0.0017324]
[1733412944786,0.62579613,102010.0,102000.0,0.0017324]
[1733412944995,0.72579613,102010.0,102000.0,0.0017324]
[1733412945243,0.296078,102000.0,101990.0,5e-05]
[1733412945467,0.42619708,101970.0,101960.0,0.005]
[1733412945677,0.196136,101970.0,101960.0,0.005]
[1733412945944,0.392256,101980.0,101960.0,0.005]
[1733412946148,0.196136,101970.0,101960.0,0.005]
[1733412946604,0.723005,101990.0,101960.0,0.20275305]
[1733412946809,0.919114,101990.0,101960.0,0.30082205]
[1733412947049,0.723005,101990.0,101970.0,0.098066]
[1733412947277,0.196105,101990.0,101970.0,0.098066]
[1733412947486,0.392214,101990.0,101960.0,0.30381705]
[1733412947698,0.588327,101990.0,101960.0,0.30381605]
[1733412948123,0.392216,101990.0,101960.0,0.30381605]
[1733412948332,0.196118,101980.0,101960.0,0.30381605]
[1733412948558,0.22497302,102000.0,101970.0,0.098062]
[1733412948762,0.51138563,102000.0,101970.0,0.196123]
[1733412948968,0.31529163,102000.0,101970.0,0.196123]
[1733412949186,0.003,101990.0,101980.0,0.19706219]
[1733412949600,0.002,101990.0,101980.0,0.19706219]
[1733412950009,0.001,102000.0,101990.0,0.098048]
[1733412950445,0.002,102000.0,101980.0,0.19706219]
[1733412950668,0.19606,102010.0,101990.0,0.098047]
[1733412951105,0.19606,102010.0,101990.0,0.196095]
[1733412951329,0.19606,102010.0,101990.0,0.098047]
[1733412951810,0.01935112,102020.0,102000.0,0.098038]
[1733412952025,0.392052,102030.0,102000.0,0.294103]
[1733412952257,0.41196108,102030.0,102010.0,0.098029]
[1733412952476,0.196022,102030.0,102010.0,0.098027]
[1733412952706,0.40128171,102040.0,102010.0,0.098027]
[1733412952707,0.196007,102040.0,102010.0,0.28070305]
[1733412952929,0.42610008,102020.0,101990.0,0.098039]
[1733412953138,0.52575813,102030.0,101990.0,0.09967605]
[1733412953371,0.196073,102010.0,101980.0,0.279101]
[1733412953637,0.392147,102010.0,101980.0,0.47683005]
[1733412953876,0.392144,102010.0,101980.0,0.47683005]
[1733412954326,0.392144,102010.0,101980.0,0.28246265]
[1733412954327,0.196079,102000.0,101980.0,0.28246265]
[1733412954557,0.196079,102000.0,101980.0,0.0017366]
[1733412954798,0.23006108,101990.0,101980.0,0.0017366]
[1733412955003,1.05273413,101990.0,101980.0,0.0017366]
[1733412955458,1.15273413,101990.0,101980.0,0.0017366]
[1733412955671,0.196136,101970.0,101960.0,0.005]
[1733412955902,0.52587313,101970.0,101960.0,0.005]
[1733412956159,0.56987313,101970.0,101960.0,0.005]
[1733412956374,1.19677313,101970.0,101960.0,0.005]
[1733412956583,1.19677313,101970.0,101940.0,0.0169914]
[1733412956584,0.42623508,101950.0,101940.0,0.0119914]
[1733412956818,0.52658136,101950.0,101940.0,0.0119914]
[1733412957479,0.196213,101930.0,101890.0,0.0017366]
[1733412957687,0.196213,101930.0,101890.0,0.1096946]
[1733412957688,0.196264,101910.0,101890.0,0.1096946]
[1733412957899,0.23073131,101910.0,101890.0,0.1096896]
[1733412958107,0.3589833,101910.0,101890.0,0.1096956]
[1733412958314,0.29591805,101920.0,101890.0,0.1096956]
[1733412958315,0.29591305,101920.0,101890.0,0.0017366]
[1733412958528,0.196196,101940.0,101910.0,0.107937]
[1733412958747,0.196196,101940.0,101900.0,0.09967605]
[1733412958748,0.196214,101930.0,101900.0,0.20761905]
[1733412958959,0.196233,101920.0,101900.0,0.09967605]
[1733412959164,0.196236,101920.0,101890.0,0.2176396]
[1733412959392,0.62321431,101920.0,101890.0,0.20936365]
[1733412959624,0.29590105,101930.0,101890.0,0.31731665]
[1733412959840,0.196234,101920.0,101890.0,0.31731565]
[1733412960055,0.392456,101930.0,101900.0,0.31557105]
[1733412960268,0.002,101920.0,101900.0,0.31557105]
[1733412960737,0.003,101920.0,101900.0,0.31556005]
[1733412960962,0.003,101920.0,101900.0,0.42350105]
[1733412961173,0.001,101920.0,101910.0,0.107938]
[1733412961468,0.001,101920.0,101910.0,0.20859529]
[1733412961700,0.001,101920.0,101910.0,0.33731405]
[1733412962160,0.392399,101940.0,101910.0,0.44524605]
[1733412962393,0.196213,101930.0,101910.0,0.33730805]
[1733412962630,0.003,101920.0,101910.0,0.17997605]
[1733412962836,0.003,101920.0,101910.0,0.18095727]
[1733412963096,0.392406,101940.0,101910.0,0.28791405]
[1733412963331,0.392406,101940.0,101910.0,0.18597605]
[1733412963332,0.001,101920.0,101910.0,0.18597605]
[1733412963570,0.196213,101930.0,101910.0,0.28791405]
[1733412964026,0.024,101940.0,101920.0,0.09967605]
[1733412964237,0.024,101940.0,101920.0,0.20759605]
[1733412964449,0.41539,101940.0,101920.0,0.09967605]
[1733412964660,0.219195,101940.0,101920.0,0.20760305]
[1733412964867,0.023,101940.0,101920.0,0.31552505]
[1733412965084,0.023,101940.0,101920.0,0.42344705]
[1733412965302,0.023,101940.0,101920.0,0.31552005]
[1733412965528,0.023,101940.0,101930.0,0.107917]
[1733412965744,0.023,101940.0,101930.0,0.20759305]
[1733412966163,0.025,101940.0,101930.0,0.20759305]
[1733412966370,0.023,101940.0,101930.0,0.20759305]
[1733412966594,0.220203,101940.0,101910.0,0.0820378]
[1733412966829,0.196213,101930.0,101910.0,0.28964585]
[1733412967029,0.196213,101930.0,101910.0,0.10141385]
[1733412967262,0.392438,101930.0,101920.0,0.02461992]
[1733412967471,0.19671316,101930.0,101920.0,0.02461992]
[1733412967904,0.00050016,101930.0,101920.0,0.13254692]
[1733412968153,0.35091415,101940.0,101920.0,0.02461992]
[1733412968385,0.196213,101930.0,101920.0,0.02461992]
[1733412968601,0.196232,101920.0,101910.0,0.0017378]
[1733412969078,0.68550646,101920.0,101910.0,0.0017378]
[1733412969303,0.42700131,101900.0,101890.0,0.0017366]
[1733412969513,0.196309,101880.0,101870.0,0.0017366]
[1733412969751,0.62333631,101890.0,101870.0,0.0017366]
[1733412969958,0.196309,101880.0,101870.0,0.0017366]
[1733412970820,0.002,101880.0,101870.0,0.0017366]
[1733412971048,0.002,101880.0,101870.0,0.1097166]
[1733412971713,0.002,101880.0,101870.0,0.20939265]
[1733412972155,0.002,101880.0,101870.0,0.28859265]
[1733412972365,0.001,101890.0,101880.0,0.10797]
[1733412972605,0.001,101890.0,101880.0,0.2086275]
[1733412972818,0.15,101920.0,101900.0,0.215885]
[1733412973044,0.346233,101920.0,101900.0,0.31556005]
[1733412973285,0.08199999,101920.0,101900.0,0.31556005]
[1733412973495,0.42699131,101910.0,101880.0,0.107962]
[1733412973702,0.392551,101900.0,101880.0,0.10567605]
[1733412973914,0.001,101890.0,101880.0,0.10567605]
[1733412974150,0.392551,101900.0,101880.0,0.10267605]
[1733412974580,0.19627,101900.0,101880.0,0.21064405]
[1733412974789,0.62325331,101910.0,101880.0,0.31860605]
[1733412974999,0.60802488,101910.0,101880.0,0.31360105]
[1733412975210,0.05981762,101910.0,101880.0,0.003]
[1733412975470,0.392569,101900.0,101870.0,0.2968816]
[1733412975682,0.19629,101890.0,101870.0,0.39655765]
[1733412975897,0.62331131,101890.0,101870.0,0.10141265]
[1733412976110,0.42704031,101880.0,101870.0,0.0017366]
[1733412976811,0.196309,101880.0,101870.0,0.0017366]
[1733412977270,0.42704031,101880.0,101870.0,0.0017366]
[1733412977474,0.199309,101880.0,101870.0,0.0017366]
[1733412978123,0.19629,101890.0,101870.0,0.0017366]
[1733412978326,0.392562,101900.0,101870.0,0.0998956]
[1733412978577,0.196275,101900.0,101870.0,0.10239423]
[1733412978782,0.26399988,101910.0,101890.0,0.09814]
[1733412978783,0.21549288,101910.0,101890.0,0.09814]
[1733412978996,0.196293,101890.0,101870.0,0.28017565]
[1733412979202,0.197293,101890.0,101870.0,0.28017265]
[1733412979409,0.197293,101890.0,101870.0,0.18201265]
[1733412979630,0.196309,101880.0,101870.0,0.0017366]
[1733412979843,0.42704031,101880.0,101870.0,0.0017366]
[1733412980487,0.54971636,101880.0,101870.0,0.0017366]
[1733412980740,0.77431636,101880.0,101870.0,0.0017366]
[1733412980949,1.28021636,101880.0,101870.0,0.0017366]
[1733412981178,1.38021636,101880.0,101870.0,0.0017366]
[1733412981409,1.18021636,101880.0,101870.0,0.0017366]
[1733412981617,1.10291636,101880.0,101870.0,0.0017366]
[1733412982091,1.05561636,101880.0,101870.0,0.0017366]
[1733412982318,0.97597932,101880.0,101870.0,0.0017366]
[1733412982551,0.97497932,101880.0,101870.0,0.0017366]
[1733412982778,0.97597932,101880.0,101870.0,0.02085437]
[1733412983234,0.87934637,101880.0,101870.0,0.02085437]
[1733412983458,1.07665537,101880.0,101870.0,0.02085437]
[1733412983692,1.07565537,101880.0,101870.0,0.02085437]
[1733412983881,1.28258452,101880.0,101860.0,0.005]
[1733412984081,0.42707831,101860.0,101840.0,0.0152574]
[1733412984308,0.42709831,101850.0,101840.0,0.0152574]
[1733412985175,0.26278025,101880.0,101840.0,0.11493345]
[1733412985388,0.19633,101870.0,101850.0,0.19785405]
[1733412985604,0.19633,101870.0,101850.0,0.29603205]
[1733412986040,0.392668,101870.0,101840.0,0.2868324]
[1733412986253,0.392668,101870.0,101840.0,0.19013345]
[1733412986254,0.42706131,101870.0,101840.0,0.19013345]
[1733412986457,0.42709831,101850.0,101840.0,0.0152574]
[1733412986674,0.46980814,101850.0,101840.0,0.0152574]
[1733412986892,0.66948419,101850.0,101840.0,0.0152574]
[1733412987352,0.56948419,101850.0,101840.0,0.0152574]
[1733412987573,0.196444,101810.0,101800.0,0.0017378]
[1733412987788,0.1237,101840.0,101800.0,0.0999608]
[1733412987789,0.55083131,101840.0,101800.0,0.0999608]
[1733412988005,0.3928,101840.0,101810.0,0.29610705]
[1733412988217,0.57711131,101850.0,101810.0,0.19789005]
[1733412988437,0.15,101850.0,101830.0,0.098201]
[1733412988652,0.15,101850.0,101840.0,0.19786905]
[1733412989089,0.151,101850.0,101840.0,0.19786905]
[1733412989303,0.152,101850.0,101840.0,0.19786905]
[1733412989785,0.151,101850.0,101840.0,0.19786905]
[1733412989999,0.151,101850.0,101840.0,0.20186905]
[1733412990269,0.151,101850.0,101840.0,0.30186905]
[1733412990499,0.151,101850.0,101840.0,0.30360385]
[1733412990712,0.151,101850.0,101840.0,0.66270806]
[1733412990713,0.15,101850.0,101840.0,0.66270806]
[1733412990927,0.0008674,101880.0,101870.0,0.098164]
[1733412991154,0.0008674,101880.0,101870.0,0.19784005]
[1733412991385,0.0008674,101880.0,101870.0,0.09967605]
[1733412991620,0.42819161,101880.0,101840.0,0.2350178]
[1733412991856,0.42819161,101880.0,101850.0,0.29603705]
[1733412992063,0.0008674,101880.0,101860.0,0.098172]
[1733412992298,0.0008674,101880.0,101870.0,0.19784005]
[1733412992957,0.0018674,101880.0,101870.0,0.19784005]
[1733412993397,0.0008674,101880.0,101870.0,0.19784005]
[1733412993646,0.0018674,101880.0,101870.0,0.19784005]
[1733412993853,0.196281,101900.0,101870.0,0.19784005]
[1733412994065,0.196281,101900.0,101870.0,0.29599805]
[1733412994299,0.01930513,101910.0,101890.0,0.098144]
[1733412994519,0.01930513,101910.0,101890.0,0.196284]
[1733412994749,0.70079221,101920.0,101890.0,0.19628]
[1733412994957,0.70079221,101920.0,101900.0,0.098135]
[1733412994958,0.196243,101920.0,101900.0,0.098135]
[1733412995207,0.60567187,101930.0,101900.0,0.098135]
[1733412995441,0.90157392,101930.0,101900.0,0.19627]
[1733412995694,0.15,101930.0,101910.0,0.196244]
[1733412996110,0.15,101930.0,101910.0,0.191244]
[1733412996337,0.001,101920.0,101910.0,0.191244]
[1733412996769,0.001,101920.0,101910.0,0.29190125]
[1733412996981,0.001,101920.0,101910.0,0.29092005]
[1733412997404,0.151,101930.0,101910.0,0.38904005]
[1733412997630,0.151,101930.0,101920.0,0.19877307]
[1733412997844,0.001,101930.0,101920.0,0.52879626]
[1733412998063,0.0008669,101940.0,101920.0,0.62691226]
[1733412998291,0.392258,101980.0,101950.0,0.098087]
[1733412998497,0.392258,101980.0,101950.0,0.29584405]
[1733412998702,0.31761711,101990.0,101950.0,0.29584405]
[1733412998703,0.4385909,101990.0,101960.0,0.098076]
[1733412998947,0.23100421,101970.0,101930.0,0.1278]
[1733412999150,0.196193,101940.0,101930.0,0.09967605]
[1733412999378,0.196216,101930.0,101910.0,0.0853]
[1733412999591,0.588608,101940.0,101920.0,0.09967605]
[1733412999802,0.196193,101940.0,101920.0,0.10167605]
[1733413000047,0.196193,101940.0,101920.0,0.09967605]
[1733413000269,0.196196,101940.0,101920.0,0.09967605]
[1733413000472,0.196196,101940.0,101930.0,0.006]
[1733413000473,0.197196,101940.0,101930.0,0.006]
[1733413000688,0.196196,101940.0,101920.0,0.19779105]
[1733413000904,0.393401,101940.0,101920.0,0.09967605]
[1733413001113,0.002,101940.0,101920.0,0.09967605]
[1733413001339,0.001,101940.0,101930.0,0.00098103]
[1733413001548,0.001,101940.0,101930.0,0.19876308]
[1733413001753,0.001,101940.0,101930.0,0.19778205]
[1733413002194,0.62328821,101970.0,101930.0,0.19778205]
[1733413002409,0.42717421,101960.0,101930.0,0.19778205]
[1733413002632,0.001,101940.0,101930.0,0.29588205]
[1733413002837,0.002,101940.0,101930.0,0.29588205]
[1733413003054,0.0008674,101950.0,101930.0,0.29587705]
[1733413003284,0.14830462,101970.0,101940.0,0.29684291]
[1733413003502,0.14930462,101970.0,101940.0,0.29683791]
[1733413003722,0.001,101970.0,101950.0,0.098085]
[1733413003948,0.001,101970.0,101950.0,0.37474005]
[1733413004158,0.001,101970.0,101960.0,0.19873374]
[1733413004370,5.392173,102000.0,101970.0,0.19613]
[1733413004591,5.0,102000.0,101990.0,0.098048]
[1733413004816,5.0,102000.0,101990.0,0.19772405]
[1733413005303,5.0,102000.0,101990.0,0.09967605]
[1733413005941,5.0,102000.0,101990.0,0.19772405]
[1733413006164,5.23100421,102000.0,101970.0,0.098062]
[1733413006393,5.0,102000.0,101980.0,0.19772805]
[1733413006639,5.0,102000.0,101990.0,0.11613116]
[1733413006872,5.001,102000.0,101990.0,0.09967605]
[1733413007107,5.001,102000.0,101960.0,0.128]
[1733413007300,5.002,102000.0,101980.0,0.196108]
[1733413007529,5.003,102000.0,101980.0,0.29577905]
[1733413007745,5.001,102000.0,101990.0,0.09967605]
[1733413008208,4.93299999,102000.0,101990.0,0.19772405]
[1733413008421,4.93299999,102000.0,101990.0,0.09967605]
[1733413008863,5.5561822,102000.0,101970.0,0.196126]
[1733413009078,4.93399999,102000.0,101980.0,0.09967605]
[1733413009304,4.93499999,102000.0,101980.0,0.19772805]
[1733413009743,4.93499999,102000.0,101980.0,0.29578105]
[1733413009955,4.93299999,102000.0,101990.0,0.0990284]
[1733413010167,4.93399999,102000.0,101990.0,0.19772405]
[1733413010369,4.93499999,102000.0,101990.0,0.19772405]
[1733413010778,4.93399999,102000.0,101990.0,0.19772405]
[1733413012305,4.93299999,102000.0,101990.0,0.37302405]
[1733413012533,4.93399999,102000.0,101990.0,0.57052405]
[1733413012745,4.93499999,102000.0,101990.0,0.58894653]
[1733413012972,4.93499999,102000.0,101990.0,0.57052405]
[1733413013255,4.86499998,102000.0,101990.0,0.57052405]
[1733413013498,4.86599998,102000.0,101990.0,0.24967605]
[1733413013704,4.86699998,102000.0,101990.0,0.35672405]
[1733413013920,4.86599998,102000.0,101990.0,0.35672405]
[1733413014128,4.86599998,102000.0,101990.0,0.37513998]
[1733413014338,4.86686768,102000.0,101990.0,0.47113998]
[1733413014772,4.86686768,102000.0,101990.0,0.45272405]
[1733413014987,4.86686768,102000.0,101990.0,0.35272405]
[1733413015201,4.86686768,102000.0,101990.0,0.37011644]
[1733413015408,4.86586768,102000.0,101990.0,0.36511644]
[1733413015891,4.86586768,102000.0,101990.0,0.36611644]
[1733413016135,4.86686768,102000.0,101990.0,0.36611644]
[1733413016350,5.09687189,102000.0,101990.0,0.26706844]
[1733413016558,5.29394989,102000.0,101990.0,0.18139239]
[1733413016769,5.29494989,102000.0,101990.0,0.164]
[1733413017002,5.06294568,102000.0,101990.0,0.155]
[1733413017209,5.06194568,102000.0,101990.0,0.157]
[1733413017459,5.3270161,102000.0,101990.0,0.158]
[1733413017676,5.57349215,102000.0,101990.0,0.006]
[1733413017900,5.57449215,102000.0,101990.0,0.006]
[1733413018115,5.50649214,102000.0,101990.0,0.006]
[1733413018388,5.14142172,102000.0,101990.0,0.006]
[1733413018607,5.49159261,102000.0,101990.0,0.006]
[1733413018830,0.196145,101970.0,101930.0,0.278804]
[1733413019050,5.01412135,102000.0,101960.0,0.09967605]
[1733413019263,0.196108,101990.0,101960.0,0.29582405]
[1733413019473,4.81803435,102000.0,101970.0,0.00098059]
[1733413019721,5.01412135,102000.0,101970.0,0.19871564]
[1733413019935,0.196097,101990.0,101970.0,0.09967605]
[1733413020362,0.392208,101990.0,101970.0,0.09967605]
[1733413020816,5.01412035,102000.0,101980.0,0.09967605]
[1733413021032,5.21121235,102000.0,101980.0,0.09967605]
[1733413021252,0.196097,101990.0,101980.0,0.09967605]
[1733413021482,5.01412035,102000.0,101980.0,0.09967605]
[1733413021727,4.79886767,102000.0,101980.0,0.29676551]
[1733413021938,0.001,101990.0,101980.0,0.29676251]
[1733413022170,0.001,101990.0,101980.0,0.62678626]
[1733413022386,0.001,101990.0,101980.0,0.42158205]
[1733413022634,0.001,101990.0,101980.0,0.38820727]
[1733413022879,0.002,101990.0,101980.0,0.70388626]
[1733413023096,0.001,101990.0,101980.0,0.47288205]
[1733413023306,4.73086766,102000.0,101990.0,0.098048]
[1733413023522,4.73086766,102000.0,101990.0,0.19772405]
[1733413023941,4.73086766,102000.0,101990.0,0.09967605]
[1733413024162,4.73086766,102000.0,101990.0,0.19870435]
[1733413024386,4.73086766,102000.0,101990.0,0.19772405]